bitfinex/quotes_ETHUSD_20220310
["timestamp","ask_amount","ask_price","bid_price","bid_amount"]
[1646929634713,0.9636709,2596.3,2596.0,0.08769731]
[1646929634916,0.9636709,2596.3,2596.0,0.09142752]
[1646929635316,0.48279526,2596.2,2596.1,1.09788713]
[1646929635913,0.9636709,2596.3,2596.1,1.09788713]
[1646929636513,0.9633806,2596.5,2596.1,1.09788713]
[1646929637363,0.9633806,2596.5,2596.2,0.00373012]
[1646929637764,0.48275126,2596.4,2596.2,0.00373012]
[1646929638362,0.48275126,2596.4,2596.1,1.09788713]
[1646929638566,0.48275126,2596.4,2596.2,0.87467712]
[1646929638767,0.48275126,2596.4,2596.3,1.09788713]
[1646929638968,0.48278686,2596.4,2596.3,1.09788713]
[1646929640171,0.9633806,2596.5,2596.3,1.09788713]
[1646929642413,0.48348036,2596.4,2596.3,1.09788713]
[1646929643919,0.48348036,2596.4,2596.3,1.12324474]
[1646929645382,3.98348036,2596.4,2596.3,0.02535761]
[1646929645577,4.36758036,2596.4,2595.6,0.01563856]
[1646929645782,1.09443132,2596.2,2595.6,0.01563856]
[1646929645980,1.09443132,2596.2,2595.2,0.09501892]
[1646929645981,17.5,2595.8,2595.2,0.00872112]
[1646929646178,17.5,2595.8,2594.7,2.06975154]
[1646929646179,0.96412,2595.5,2595.3,1.07635428]
[1646929646378,0.49257955,2595.4,2594.7,0.06670452]
[1646929646677,0.49257955,2595.4,2594.8,1.06171464]
[1646929647077,0.49257955,2595.4,2594.9,0.04320018]
[1646929647078,2.3123657,2595.3,2594.9,0.04320018]
[1646929647280,0.65975512,2594.6,2594.2,0.05]
[1646929647479,0.65975512,2594.6,2594.3,1.06250725]
[1646929647480,0.51783935,2594.5,2594.3,1.06250725]
[1646929647881,0.65975512,2594.6,2594.3,1.06250725]
[1646929648076,0.65975512,2594.6,2594.5,1.0325313]
[1646929648278,0.65975512,2594.6,2594.2,0.06730856]
[1646929648279,2.14016555,2594.6,2594.2,0.06730856]
[1646929648520,1.62409122,2594.6,2594.3,1.06160587]
[1646929649818,1.62409122,2594.6,2594.2,0.06730856]
[1646929650222,5.12409122,2594.6,2594.2,0.06730856]
[1646929650422,1.62409122,2594.6,2594.2,0.06730856]
[1646929650621,1.62409122,2594.6,2594.3,0.00141178]
[1646929651120,0.9643,2594.5,2594.3,0.01872034]
[1646929651320,1.62409122,2594.6,2594.3,0.01872034]
[1646929651522,1.62409122,2594.6,2594.3,0.01730856]
[1646929651919,1.62409122,2594.6,2594.3,0.01872031]
[1646929652763,1.62409122,2594.6,2594.3,0.01730856]
[1646929652965,1.62409122,2594.6,2594.3,0.02116835]
[1646929653865,5.12409122,2594.6,2594.3,0.01730856]
[1646929654265,1.62409122,2594.6,2594.3,0.02116835]
[1646929654465,2.58835122,2594.6,2594.3,0.02116835]
[1646929654664,6.08835122,2594.6,2594.3,0.02116835]
[1646929654865,6.08835122,2594.6,2594.5,0.02261563]
[1646929655067,6.08835122,2594.6,2594.5,0.03992419]
[1646929655672,6.47245122,2594.6,2594.5,0.03992419]
[1646929657813,2.97245122,2594.6,2594.5,0.03992419]
[1646929658015,6.47245122,2594.6,2594.5,0.03992419]
[1646929658214,2.97245122,2594.6,2594.5,0.03992419]
[1646929658413,6.47245122,2594.6,2594.5,0.03992419]
[1646929659864,1.62409122,2594.6,2594.5,0.03992419]
[1646929661465,2.97246122,2594.6,2594.5,0.03992419]
[1646929661863,2.58836122,2594.6,2594.5,0.03992419]
[1646929662265,1.62409122,2594.6,2594.5,0.03992419]
[1646929662468,2.58836122,2594.6,2594.5,0.03992419]
[1646929663067,2.97246122,2594.6,2594.5,0.03992419]
[1646929663270,2.58836122,2594.6,2594.5,0.03992419]
[1646929665820,2.97246122,2594.6,2594.5,0.03992419]
[1646929667165,2.58836122,2594.6,2594.5,0.03992419]
[1646929667366,1.62409122,2594.6,2594.5,0.03992419]
[1646929667568,0.65975512,2594.6,2594.5,0.03992419]
[1646929669475,0.65975512,2594.6,2594.5,0.01236927]
[1646929669675,1.04385512,2594.6,2594.5,0.01236927]
[1646929669876,1.04385512,2594.6,2594.5,0.03174095]
[1646929670675,0.65975512,2594.6,2594.5,0.03174095]
[1646929671714,1.04385512,2594.6,2594.5,0.03174095]
[1646929673723,0.65975512,2594.6,2594.5,0.03174095]
[1646929675461,0.71426608,2594.6,2594.5,0.04161953]
[1646929675864,1.09836608,2594.6,2594.5,0.04161953]
[1646929676267,1.39836608,2594.6,2594.5,0.04161953]
[1646929676464,1.34385512,2594.6,2594.5,0.04161953]
[1646929678717,1.04385512,2594.6,2594.5,0.04161953]
[1646929678918,0.65975512,2594.6,2594.5,0.04161953]
[1646929682973,0.65975512,2594.6,2594.5,0.10612965]
[1646929683371,1.1714,2595.8,2594.7,0.3841]
[1646929683571,0.00360083,2596.0,2595.3,1.02359898]
[1646929683572,0.50002935,2595.7,2595.3,1.02359898]
[1646929683769,0.00360083,2596.0,2595.3,1.02359898]
[1646929683770,0.96723873,2596.0,2595.3,1.02359898]
[1646929683973,0.50035216,2595.9,2595.3,1.02359898]
[1646929684372,0.50035216,2595.9,2595.3,2.05258287]
[1646929684571,0.50035216,2595.9,2595.5,0.07236057]
[1646929684975,0.00360149,2596.0,2595.7,11.75]
[1646929685272,0.90283132,2596.9,2595.9,11.75]
[1646929685471,0.1925,2597.0,2596.0,0.06709952]
[1646929686123,0.1925,2597.0,2596.2,0.96319]
[1646929686323,0.1925,2597.0,2596.4,0.96318]
[1646929686527,0.0551688,2597.1,2596.4,0.96318]
[1646929686726,0.00353313,2596.6,2596.3,0.07278654]
[1646929687128,0.00353313,2596.6,2596.5,0.96312]
[1646929687328,0.00353313,2596.6,2596.5,16.21312]
[1646929687530,0.71033132,2597.6,2596.5,16.21312]
[1646929687731,0.77681137,2597.7,2596.6,0.06017707]
[1646929688130,0.77681137,2597.7,2596.9,0.96297]
[1646929688330,0.77681137,2597.7,2596.7,1.92588]
[1646929688331,0.77681137,2597.7,2596.6,0.06151341]
[1646929688632,1.09443132,2597.6,2596.6,0.06151341]
[1646929688832,0.06117919,2597.4,2596.4,0.07728781]
[1646929689135,0.06471197,2597.4,2596.4,0.07728781]
[1646929689331,0.06499048,2597.3,2596.4,0.07728781]
[1646929689532,0.9632752,2597.1,2596.4,0.07728781]
[1646929689770,0.04689647,2596.3,2596.2,0.27400974]
[1646929690168,0.04689647,2596.3,2596.2,0.02400974]
[1646929692168,0.04689647,2596.3,2596.2,0.09966835]
[1646929692769,0.04689647,2596.3,2596.2,0.02400974]
[1646929694824,0.04689647,2596.3,2596.2,0.06670463]
[1646929695528,0.04689647,2596.3,2596.1,0.0709978]
[1646929697371,0.05049515,2596.3,2596.1,0.0709978]
[1646929698369,0.04689647,2596.3,2596.1,0.0709978]
[1646929698770,0.05049515,2596.3,2596.1,0.02400974]
[1646929699475,0.04689647,2596.3,2596.1,0.02400974]
[1646929699973,0.05049515,2596.3,2596.1,0.02400974]
[1646929700372,0.00049515,2596.3,2596.1,0.02400974]
[1646929700773,0.9634854,2596.3,2596.1,0.02400974]
[1646929701013,0.96708565,2596.3,2596.1,0.02400974]
[1646929701714,0.06327035,2596.2,2596.1,0.02400974]
[1646929704519,0.06327035,2596.2,2596.0,0.02400974]
[1646929706472,0.06679635,2596.4,2596.0,0.02400974]
[1646929706875,1.9268524,2596.8,2596.0,0.02400974]
[1646929707172,0.00352228,2596.4,2596.0,1.05216847]
[1646929707375,0.00352228,2596.4,2596.0,0.08883847]
[1646929707572,0.00352228,2596.4,2596.0,0.02400974]
[1646929707979,1.9270038,2596.6,2595.1,2.92708]
[1646929707980,0.06504771,2596.2,2595.1,2.92708]
[1646929708177,0.06504771,2596.2,2595.1,1.0]
[1646929708178,0.48816415,2596.1,2595.1,1.0]
[1646929708440,0.3841,2595.8,2595.7,0.00352331]
[1646929708634,2.38130584,2595.5,2595.2,0.01409635]
[1646929708832,0.06697529,2595.3,2595.2,0.01409635]
[1646929709232,0.06697529,2595.3,2594.7,0.02224785]
[1646929709531,0.964119,2595.2,2594.7,0.02224785]
[1646929709732,1.03332514,2595.1,2594.7,0.02224785]
[1646929709934,0.06246903,2595.0,2594.7,0.02224785]
[1646929711032,0.07793299,2594.9,2594.7,0.02224785]
[1646929712033,0.07957881,2595.1,2594.8,1.17688744]
[1646929712571,0.07957881,2595.1,2594.7,0.02224785]
[1646929712968,0.9638472,2595.2,2594.7,0.98602785]
[1646929713166,0.13819997,2595.8,2594.8,14.21534419]
[1646929713167,0.07069177,2595.7,2594.8,14.21534419]
[1646929713368,0.07069177,2595.7,2595.0,11.75]
[1646929713870,0.13819997,2595.8,2595.0,11.75]
[1646929714271,0.9636611,2595.7,2595.0,1.10594016]
[1646929714473,0.9636611,2595.7,2594.8,0.00131439]
[1646929714776,0.06358944,2595.6,2594.9,0.02312117]
[1646929715473,0.06354117,2595.3,2594.9,0.02312117]
[1646929716718,0.06354117,2595.3,2595.0,0.00359281]
[1646929716918,0.06354117,2595.3,2594.3,0.25]
[1646929717119,0.06354117,2595.3,2594.2,0.05]
[1646929717120,0.46612591,2595.0,2594.2,0.05]
[1646929717319,0.08378336,2594.7,2594.2,0.05]
[1646929718218,1.04811866,2594.7,2594.2,0.05]
[1646929718418,0.07886295,2594.5,2594.2,0.05]
[1646929718624,1.04319295,2594.5,2594.2,0.05]
[1646929718822,0.0702773,2594.3,2594.2,0.05]
[1646929722185,0.07764768,2594.3,2594.2,0.05]
[1646929724621,0.07764768,2594.3,2594.2,0.08767781]
[1646929731112,3.8573725,2594.4,2594.3,0.02608372]
[1646929732918,2.8930625,2594.4,2594.3,0.02608372]
[1646929733120,0.9640333,2594.7,2594.3,0.02608372]
[1646929734672,0.9640333,2594.7,2594.4,0.00360566]
[1646929735074,0.96764493,2594.9,2594.4,0.00360566]
[1646929735075,0.96760033,2594.9,2594.4,0.00360566]
[1646929735273,0.00360493,2594.9,2594.4,0.00360566]
[1646929735673,0.52184925,2595.1,2594.3,0.08942927]
[1646929736073,0.52184925,2595.1,2594.5,0.00337007]
[1646929736074,0.00336952,2594.9,2594.5,0.00337007]
[1646929736273,0.00336952,2594.9,2594.6,11.75]
[1646929736876,5.941699,2595.6,2594.6,11.75]
[1646929737074,5.941699,2595.6,2594.9,12.68404961]
[1646929737075,0.52215603,2595.5,2594.9,12.68404961]
[1646929737275,1.48595603,2595.5,2594.9,12.68404961]
[1646929737476,1.48595603,2595.5,2595.0,0.07220992]
[1646929737477,0.9638,2595.5,2595.0,0.07220992]
[1646929737883,2.1198607,2596.0,2595.0,7.54430992]
[1646929738083,0.52145324,2595.9,2595.1,11.81082006]
[1646929738276,0.1925,2596.4,2595.3,11.75]
[1646929738277,0.00336878,2595.4,2595.3,11.75]
[1646929738531,1.94402557,2596.7,2595.5,11.75]
[1646929738532,0.52145324,2596.3,2595.5,11.75]
[1646929738728,0.52145324,2596.2,2595.7,11.75]
[1646929738928,1.0,2596.7,2595.9,11.75]
[1646929739127,1.0,2596.7,2596.0,0.07708584]
[1646929739128,0.52161224,2596.6,2596.0,0.07708584]
[1646929739326,0.52161224,2596.6,2596.0,15.32708584]
[1646929739526,2.3475,2597.2,2596.1,0.07598353]
[1646929739725,0.52159371,2597.1,2596.4,0.87115433]
[1646929739926,1.48476511,2597.1,2596.4,12.62115433]
[1646929740129,0.52159371,2597.0,2596.6,11.75]
[1646929740338,4.68533132,2597.6,2596.7,0.06424481]
[1646929740529,0.1925,2597.8,2596.7,0.06424481]
[1646929740530,0.52154959,2597.5,2596.7,0.06424481]
[1646929740725,0.52154959,2597.4,2596.7,0.06424481]
[1646929740925,0.52154959,2597.3,2596.5,12.21230961]
[1646929741130,0.52154959,2597.2,2596.5,15.25]
[1646929741326,0.58119894,2597.1,2596.5,11.75]
[1646929741526,0.52154959,2597.0,2596.5,11.75]
[1646929741926,0.52154959,2597.0,2596.4,2.79717433]
[1646929741927,0.52154959,2597.0,2596.7,11.75]
[1646929742168,1.02380797,2597.4,2596.9,11.75]
[1646929742169,0.06075787,2597.4,2596.9,11.75]
[1646929742372,0.52174054,2597.3,2597.0,3.56308135]
[1646929742571,0.94402557,2598.0,2597.3,11.75]
[1646929742572,0.71033132,2598.0,2597.3,11.75]
[1646929742769,0.71033132,2598.0,2597.2,3.07368515]
[1646929742770,0.71033132,2598.4,2597.6,0.07766245]
[1646929742975,0.94402557,2598.6,2597.8,0.07258875]
[1646929742976,0.71033132,2598.6,2597.8,0.07258875]
[1646929743169,0.71033132,2598.6,2597.9,12.78494028]
[1646929743370,0.71033132,2598.6,2598.0,0.08297094]
[1646929743975,0.05276046,2598.6,2597.7,0.08729063]
[1646929744174,0.96275,2598.4,2597.5,0.0826074]
[1646929744375,2.06103706,2598.4,2597.3,0.07829026]
[1646929744577,0.3841,2598.1,2597.3,0.07829026]
[1646929744775,0.05376131,2598.0,2597.3,0.07829026]
[1646929745675,0.00385609,2597.8,2597.3,0.07829026]
[1646929746127,0.00385609,2597.8,2597.0,1.92554]
[1646929746330,0.00385609,2597.8,2597.1,0.0802726]
[1646929746727,0.05780582,2597.8,2596.9,0.12800555]
[1646929746929,0.3841,2597.6,2596.9,0.04977811]
[1646929747127,0.04466159,2597.5,2596.9,0.04977811]
[1646929747933,0.00345814,2597.3,2596.9,0.04977811]
[1646929748836,1.00777159,2597.5,2596.9,0.04977811]
[1646929749233,0.00345819,2597.2,2596.9,0.04977811]
[1646929749672,0.00345819,2597.2,2596.7,0.07080461]
[1646929750272,1.00777159,2597.5,2596.7,0.07080461]
[1646929750473,0.00345825,2597.1,2596.7,0.07080461]
[1646929751080,0.00345825,2597.1,2596.8,11.75]
[1646929751274,0.00345825,2597.1,2596.9,0.08300496]
[1646929751478,0.96296,2597.8,2596.9,0.08300496]
[1646929751874,0.00349795,2597.0,2596.9,0.08300496]
[1646929752775,0.00235263,2597.1,2596.9,0.08300496]
[1646929753636,0.96304,2597.6,2596.9,0.08300496]
[1646929753834,0.96304,2597.6,2597.1,12.78908096]
[1646929754041,1.92607,2597.6,2597.0,1.22293387]
[1646929754335,1.01340086,2597.5,2596.6,1.08627942]
[1646929754537,1.01340086,2597.5,2596.9,0.06205067]
[1646929755135,0.05032086,2597.5,2596.9,0.06205067]
[1646929755336,0.00386006,2597.2,2596.9,1.23631749]
[1646929756037,0.00386006,2597.2,2596.9,12.98631749]
[1646929756237,0.05497604,2597.8,2596.9,13.94924749]
[1646929756540,0.00386006,2597.2,2596.9,13.94924749]
[1646929757368,1.40202604,2597.8,2596.9,13.94924749]
[1646929757369,1.00755211,2597.6,2596.9,13.94924749]
[1646929757570,0.00386006,2597.2,2596.9,13.94924749]
[1646929758575,0.96297,2597.4,2596.9,13.94924749]
[1646929758774,0.00378871,2597.2,2596.9,13.94924749]
[1646929759078,0.00378871,2597.2,2596.9,14.0210344]
[1646929759475,0.00378871,2597.2,2597.1,0.03997837]
[1646929759775,0.96297,2597.4,2597.1,0.03997837]
[1646929760075,0.96662843,2597.2,2597.1,0.03997837]
[1646929760921,0.96297,2597.2,2597.1,0.03997837]
[1646929763525,0.96297,2597.2,2597.1,0.02015086]
[1646929769429,0.96297,2597.2,2597.0,0.0591207]
[1646929770932,0.96629444,2597.2,2597.0,0.0591207]
[1646929771730,0.96297,2597.2,2597.0,0.0591207]
[1646929772199,0.96629444,2597.2,2597.0,0.0591207]
[1646929772995,0.96297,2597.2,2597.0,0.0591207]
[1646929773501,0.96629444,2597.2,2597.0,0.0591207]
[1646929774100,0.96629444,2597.2,2596.9,0.0830767]
[1646929774101,1.92934444,2597.2,2596.7,12.90555]
[1646929774299,3.85222,2597.1,2596.7,12.90555]
[1646929774502,0.96305,2597.0,2596.7,12.90555]
[1646929775101,1.92611,2597.0,2596.7,12.90555]
[1646929775702,1.92943055,2597.0,2596.7,12.90555]
[1646929776524,0.05121533,2596.8,2596.3,0.96318]
[1646929776725,0.05121533,2596.8,2596.1,0.25130961]
[1646929776726,2.31069,2596.7,2596.1,0.25130961]
[1646929776927,1.92659,2596.7,2596.1,2.17626]
[1646929777423,1.92659,2596.7,2596.3,1.11870346]
[1646929777625,1.92659,2596.7,2596.3,12.86870346]
[1646929778324,0.00332136,2596.5,2596.3,12.86870346]
[1646929778528,0.00332136,2596.5,2596.3,13.83187346]
[1646929778932,1.92591,2597.3,2596.6,12.0]
[1646929779128,2.3112819,2598.0,2596.8,11.75]
[1646929779129,0.05639164,2597.8,2596.8,11.75]
[1646929779329,0.05639164,2597.8,2597.0,11.75]
[1646929779330,0.47467377,2597.7,2597.0,11.75]
[1646929779528,0.47467377,2597.7,2597.2,0.96281]
[1646929779776,0.47467377,2597.7,2597.3,11.75]
[1646929779972,0.47467377,2597.7,2597.5,1.05236157]
[1646929780172,4.08838865,2598.1,2597.5,12.80236157]
[1646929780375,0.05478865,2598.1,2597.5,12.80236157]
[1646929780577,5.97463132,2598.7,2597.7,11.75]
[1646929780774,0.05408615,2598.6,2597.8,0.06488638]
[1646929781176,0.96253,2598.5,2597.9,13.67497]
[1646929781374,0.96253,2598.5,2597.5,0.1923]
[1646929781375,0.71033132,2598.4,2597.0,1.87293877]
[1646929781577,0.71033132,2598.4,2596.8,4.5775959]
[1646929781578,0.76457276,2598.2,2596.9,0.03453322]
[1646929781775,0.3841,2597.9,2596.9,0.03453322]
[1646929781976,0.05885261,2597.8,2596.9,0.03453322]
[1646929782176,0.3841,2597.5,2596.9,0.03453322]
[1646929782381,0.0540973,2597.4,2596.9,0.03453322]
[1646929783276,1.92614,2597.2,2596.9,0.03453322]
[1646929784132,1.92946349,2597.2,2596.9,0.03453322]
[1646929784333,2.89252349,2597.2,2596.8,0.01697311]
[1646929784531,1.92943349,2597.2,2596.8,0.01697311]
[1646929784936,0.00332349,2597.2,2596.8,0.01697311]
[1646929785133,0.0540973,2597.4,2596.8,0.20947311]
[1646929785337,0.00330928,2597.1,2596.9,11.75]
[1646929785733,0.00330928,2597.1,2597.0,12.96938321]
[1646929785932,0.00330928,2597.1,2597.0,13.93227321]
[1646929786333,0.96296,2597.2,2597.0,13.93227321]
[1646929786634,0.96626926,2597.2,2597.0,12.71289]
[1646929787477,0.96296,2597.2,2597.0,12.71289]
[1646929787672,0.96296,2597.2,2597.0,13.73854332]
[1646929787873,0.96626924,2597.2,2597.0,13.73854332]
[1646929788274,0.96626924,2597.2,2597.0,12.71289]
[1646929788479,0.96626924,2597.2,2596.9,0.1925]
[1646929788879,0.96957984,2597.2,2596.9,0.1925]
[1646929789079,0.9662706,2597.2,2596.9,0.1925]
[1646929789279,2.30992,2597.7,2597.0,11.80136808]
[1646929789280,0.0514906,2597.7,2597.0,11.80136808]
[1646929789483,0.0514906,2597.7,2597.1,0.25]
[1646929789879,0.96279,2597.6,2597.1,0.25]
[1646929790083,6.6728,2598.0,2597.1,0.33306931]
[1646929790084,4.60903132,2598.0,2597.1,0.33306931]
[1646929790281,0.05513751,2597.9,2597.2,11.75]
[1646929790479,0.05513751,2597.9,2597.3,0.96282]
[1646929790934,1.01786751,2597.9,2597.3,0.96282]
[1646929791521,1.01786751,2597.9,2597.4,11.75]
[1646929791722,1.01786751,2597.9,2597.5,12.83637273]
[1646929791924,0.96273,2597.9,2597.5,13.79912273]
[1646929792124,1.72731452,2598.2,2597.5,13.79912273]
[1646929792323,7.56130602,2598.5,2597.6,0.08340394]
[1646929792324,0.71033132,2598.4,2597.6,0.08340394]
[1646929792523,0.71033132,2598.4,2597.7,0.25]
[1646929792726,0.00385971,2597.8,2597.7,0.25]
[1646929793125,0.00385971,2597.8,2597.7,12.461]
[1646929793323,0.00385971,2597.8,2597.7,14.38613]
[1646929793529,0.76824877,2598.5,2597.7,14.38613]
[1646929793729,0.71033132,2598.7,2598.0,0.3]
[1646929793934,0.7613768,2598.8,2598.1,11.75]
[1646929794130,0.7613768,2598.8,2597.7,2.47513]
[1646929794131,0.7613768,2598.8,2598.3,11.75]
[1646929794329,0.05104548,2598.8,2598.3,11.75]
[1646929794779,0.71033132,2598.9,2598.5,11.75]
[1646929794981,1.72682151,2599.1,2598.7,10.0557961]
[1646929795181,0.06065319,2599.0,2598.7,10.0557961]
[1646929795882,0.06065319,2599.0,2598.8,0.96227]
[1646929796284,0.06065319,2599.0,2598.8,11.0180661]
[1646929796484,0.00385909,2599.0,2598.8,11.0180661]
[1646929796681,0.00385909,2599.0,2598.6,0.461]
[1646929796682,0.0023712,2599.0,2598.9,11.12379788]
[1646929797082,0.71033132,2599.4,2598.9,13.04779788]
[1646929797284,4.47991907,2599.6,2599.1,10.0557961]
[1646929797482,0.76129285,2599.5,2599.1,10.0557961]
[1646929797681,0.76129285,2599.5,2599.0,0.25]
[1646929798084,0.05096153,2599.5,2599.0,0.25]
[1646929799131,1.01308153,2599.5,2599.0,0.25]
[1646929799532,1.01308153,2599.5,2599.2,0.96201]
[1646929799932,1.01308153,2599.5,2599.1,1.92402]
[1646929800132,0.42752347,2599.4,2599.1,1.92402]
[1646929801134,1.0140585,2599.3,2599.1,1.92402]
[1646929801333,0.47673218,2599.2,2599.0,1.2122]
[1646929801535,0.42752347,2599.1,2599.0,1.2122]
[1646929801735,0.42752347,2599.1,2599.0,0.25]
[1646929802172,0.43138626,2599.2,2599.0,0.25]
[1646929802574,0.81548626,2599.2,2598.9,0.03355093]
[1646929802775,0.81162347,2599.1,2598.9,0.03355093]
[1646929802976,0.42752347,2599.0,2598.9,0.03355093]
[1646929803180,0.42752347,2599.1,2598.9,0.03355093]
[1646929803989,0.81162347,2599.1,2598.9,0.03355093]
[1646929804178,0.42752347,2599.0,2598.9,0.03355093]
[1646929805930,0.00386287,2599.1,2598.9,0.03355093]
[1646929806738,0.96222,2599.2,2598.9,12.74579093]
[1646929806935,0.96222,2599.2,2599.1,12.91090134]
[1646929807334,2.88702,2599.5,2599.1,12.91090134]
[1646929808339,0.00386268,2599.4,2599.1,12.91090134]
[1646929808536,0.00386268,2599.4,2599.2,0.96205]
[1646929809036,3.84907,2599.5,2599.2,0.96205]
[1646929809235,3.84907,2599.5,2599.1,1.9241]
[1646929809437,0.96216,2599.3,2599.1,1.9241]
[1646929809674,0.96216,2599.3,2599.0,0.1923]
[1646929809875,0.96216,2599.3,2599.1,0.88651137]
[1646929810076,0.96216,2599.3,2599.1,12.63651137]
[1646929810273,12.33653132,2600.1,2599.1,12.63651137]
[1646929810274,1.92406,2599.7,2599.1,12.63651137]
[1646929810483,11.0498,2600.1,2599.4,11.75]
[1646929810682,4.75273129,2600.4,2599.4,11.75]
[1646929810683,0.42400768,2600.0,2599.4,12.0]
[1646929810982,3.85009997,2600.4,2599.7,0.96191]
[1646929810983,0.42400768,2599.9,2599.7,0.96191]
[1646929811178,0.52229997,2600.4,2599.7,0.96191]
[1646929811382,2.88578,2600.0,2599.7,0.96191]
[1646929811581,0.42387056,2599.9,2599.7,12.71191]
[1646929811780,0.42633254,2599.9,2599.7,12.71191]
[1646929812179,0.00246198,2599.9,2599.7,12.71191]
[1646929812581,0.96193,2600.0,2599.7,12.71191]
[1646929812782,2.88541,2600.4,2599.7,12.90421]
[1646929813179,0.00246198,2599.9,2599.7,12.90421]
[1646929813427,0.00246198,2599.9,2599.8,0.07777581]
[1646929813632,0.00246198,2599.9,2599.8,2.19357581]
[1646929813829,0.00246198,2599.9,2599.8,13.94357581]
[1646929814028,0.00246198,2599.9,2599.8,14.5903]
[1646929814230,0.96181,2600.1,2599.8,2.8403]
[1646929814231,0.00386596,2600.0,2599.8,2.8403]
[1646929814432,0.00386596,2600.0,2599.8,3.52656482]
[1646929814630,0.00386596,2600.0,2599.8,3.33426482]
[1646929815032,0.96181,2600.1,2599.8,1.64071054]
[1646929815433,0.00357711,2600.0,2599.8,1.64071054]
[1646929815833,0.00357711,2600.0,2599.9,11.75]
[1646929816033,0.00357711,2600.0,2599.8,1.64071054]
[1646929816433,0.05852662,2600.2,2599.8,1.64071054]
[1646929816636,0.00357709,2600.1,2599.8,1.64071054]
[1646929817881,0.00357709,2600.1,2599.9,11.75]
[1646929818080,0.00357709,2600.1,2600.0,0.96177]
[1646929818288,0.00357709,2600.1,2600.0,12.90407]
[1646929818686,0.06046427,2600.6,2600.0,12.71177]
[1646929818891,1.92333,2601.1,2600.3,12.7216096]
[1646929819092,0.71033132,2601.5,2600.3,12.7216096]
[1646929819093,1.1385,2601.7,2600.6,11.75]
[1646929819286,0.45255653,2602.0,2600.8,0.25]
[1646929819487,0.38889121,2601.9,2601.0,11.75]
[1646929819687,0.39909843,2602.0,2601.6,11.75]
[1646929819888,0.20832888,2602.0,2601.5,0.68626482]
[1646929820088,0.01429843,2602.0,2601.5,2.60841482]
[1646929820288,0.3841,2602.1,2601.5,2.60841482]
[1646929820487,3.5,2602.4,2601.5,0.68626482]
[1646929820488,0.00361865,2601.6,2601.5,0.68626482]
[1646929821027,0.38771865,2601.6,2601.1,1.92271]
[1646929821229,0.3841,2601.4,2600.5,0.1922]
[1646929821436,0.3841,2601.2,2600.3,0.3848]
[1646929821628,0.96162,2601.1,2600.3,0.3848]
[1646929821828,2.30731,2601.4,2600.4,11.75]
[1646929822127,0.3841,2601.2,2600.4,1.92318]
[1646929822330,3.8841,2601.1,2600.4,1.92318]
[1646929822531,0.3841,2601.1,2600.4,1.92318]
[1646929822733,0.3841,2600.9,2600.2,0.25]
[1646929822934,0.3841,2600.9,2599.9,0.05563265]
[1646929822935,3.54797643,2600.8,2599.9,0.05563265]
[1646929823131,0.43837813,2600.7,2599.9,0.05563265]
[1646929823331,0.05281594,2600.6,2599.9,0.05563265]
[1646929823734,0.05281594,2600.6,2599.8,0.9167]
[1646929823940,3.2698994,2600.5,2599.8,0.9167]
[1646929824134,0.04758442,2600.4,2599.8,0.9167]
[1646929824335,0.04758442,2600.4,2599.8,12.6667]
[1646929825212,0.04758442,2600.4,2599.8,13.89094979]
[1646929825213,0.00216709,2600.2,2599.8,13.89094979]
[1646929825414,0.00216709,2600.2,2599.9,0.96186]
[1646929825612,0.00216709,2600.2,2599.9,12.71186]
[1646929825813,0.00216709,2600.2,2599.9,12.90416]
[1646929826012,3.5,2601.3,2600.0,0.26769332]
[1646929826212,0.3841,2601.3,2600.2,0.25]
[1646929826411,0.3841,2601.2,2600.5,0.96161]
[1646929826617,0.04289191,2601.1,2600.2,0.25]
[1646929826814,0.96176,2600.8,2600.2,0.25]
[1646929827413,1.34586,2600.8,2600.2,0.25]
[1646929827613,0.00357428,2600.6,2600.2,0.25]
[1646929827814,0.00357428,2600.6,2600.0,1.92341]
[1646929828014,0.00357428,2600.6,2599.7,0.0742721]
[1646929828015,0.3841,2600.5,2599.7,0.0742721]
[1646929828214,4.46530428,2600.6,2599.6,0.1922]
[1646929828215,0.3841,2600.3,2599.6,0.1922]
[1646929828829,0.00386922,2600.2,2599.6,0.1922]
[1646929829234,0.00386922,2600.2,2599.5,0.25]
[1646929829431,0.00386922,2600.2,2599.5,2.17377]
[1646929829631,0.00386922,2600.2,2600.1,0.03727527]
[1646929829832,0.0485885,2600.2,2600.1,0.03727527]
[1646929831437,1.9277186,2600.3,2600.1,0.03727527]
[1646929831635,1.9277186,2600.3,2600.1,0.99903527]
[1646929831636,0.0037386,2600.3,2600.1,0.99903527]
[1646929832296,1.92352,2600.6,2600.1,1.24903527]
[1646929832499,0.00373858,2600.3,2600.1,1.24903527]
[1646929833398,0.96177,2600.4,2600.1,12.99903527]
[1646929833602,0.00373858,2600.3,2600.1,1.24903527]
[1646929833802,0.00373858,2600.3,2600.2,0.96173]
[1646929834107,0.00373858,2600.3,2600.2,1.22316159]
[1646929834303,0.00373858,2600.3,2600.2,1.03096159]
[1646929834507,0.96168,2600.7,2600.2,1.03096159]
[1646929834802,0.00246215,2600.4,2600.2,1.03096159]
[1646929835002,0.96168,2600.7,2600.5,0.001236]
[1646929837132,1.01249531,2600.7,2600.5,0.001236]
[1646929838935,1.97433081,2600.7,2600.5,0.001236]
[1646929839134,1.01249531,2600.7,2600.5,0.001236]
[1646929839335,1.01249531,2600.7,2600.6,0.03510427]
[1646929839679,1.016368,2600.7,2600.6,0.03510427]
[1646929840476,1.01249531,2600.7,2600.6,0.03510427]
[1646929841878,5.23501405,2600.7,2600.6,0.03510427]
[1646929842880,1.73501405,2600.7,2600.6,0.03510427]
[1646929843083,5.23501405,2600.7,2600.6,0.03510427]
[1646929843928,1.73501405,2600.7,2600.6,0.03510427]
[1646929846436,0.3841,2600.4,2599.1,2.48080661]
[1646929846634,0.97425202,2599.9,2599.2,1.18621803]
[1646929846834,0.97425202,2599.9,2598.6,0.3843]
[1646929846835,0.3841,2599.6,2598.6,0.3843]
[1646929847034,0.96247,2599.7,2597.9,4.40558124]
[1646929847035,37.3841,2599.4,2598.2,0.1923]
[1646929847291,37.3841,2599.4,2597.8,0.7109727]
[1646929847292,0.3841,2599.2,2597.8,0.7109727]
[1646929847495,0.3841,2599.0,2597.9,1.19316594]
[1646929847689,0.96268,2598.7,2597.9,1.19316594]
[1646929847889,0.96268,2598.7,2598.0,0.1924]
[1646929848089,0.96268,2598.7,2598.1,1.19316594]
[1646929848287,0.96268,2598.7,2598.2,1.38546594]
[1646929848490,0.96268,2598.7,2598.3,1.19316594]